bitfinex/quotes_SOLUSD_20240711
["timestamp","ask_amount","ask_price","bid_price","bid_amount"]
[1720666906048,0.34,142.13,142.1,11.67]
[1720666909158,0.34,142.13,142.09,11.67]
[1720666912223,9.94765632,142.19,142.09,11.67]
[1720666912427,9.94765632,142.19,142.12,11.67]
[1720666912428,11.84,142.17,142.12,11.67]
[1720666912645,0.17,142.15,142.12,11.67]
[1720666913225,0.34,142.16,142.12,11.67]
[1720666913226,0.17,142.16,142.12,11.67]
[1720666913429,34.4458,142.18,142.13,11.67]
[1720666913640,11.84,142.17,142.12,11.67]
[1720666914571,0.17,142.16,142.12,11.67]
[1720666915050,0.34,142.16,142.12,11.67]
[1720666915255,12.01,142.16,142.11,11.67]
[1720666916652,0.34,142.16,142.12,11.67]
[1720666917325,0.34,142.16,142.13,11.67]
[1720666917529,0.34,142.16,142.12,11.67]
[1720666917930,0.34,142.17,142.13,11.67]
[1720666918144,0.34,142.17,142.14,11.67]
[1720666918145,0.17,142.17,142.14,11.67]
[1720666918648,16.2404,142.18,142.14,11.67]
[1720666919440,11.67,142.2,142.14,11.67]
[1720666920046,12.18,142.19,142.14,11.67]
[1720666920867,6.5816,142.21,142.12,7.0361]
[1720666921050,6.5816,142.21,142.16,11.67]
[1720666921376,18.2516,142.21,142.16,11.67]
[1720666921875,6.5816,142.21,142.16,11.67]
[1720666922252,0.17,142.2,142.16,11.67]
[1720666922772,0.51,142.2,142.16,11.67]
[1720666924347,11.67,142.19,142.09,13.5447]
[1720666924577,0.34,142.18,142.14,11.67]
[1720666925153,0.34,142.18,142.15,11.67]
[1720666925344,0.34,142.19,142.15,11.67]
[1720666930682,0.34,142.2,142.15,11.67]
[1720666930883,0.34,142.2,142.1,46.68]
[1720666931088,0.17,142.19,142.15,11.67]
[1720666931267,0.17,142.18,142.15,11.67]
[1720666931797,6.5816,142.21,142.11,45.0]
[1720666932075,0.17,142.19,142.18,11.67]
[1720666932266,0.17,142.19,142.17,11.67]
[1720666932463,0.17,142.19,142.13,16.4738]
[1720666932464,0.17,142.2,142.13,16.4738]
[1720666932660,0.17,142.2,142.15,11.67]
[1720666932861,0.17,142.2,142.16,11.67]
[1720666942478,0.17,142.2,142.18,11.67]
[1720666943066,0.17,142.2,142.19,11.67]
[1720666943491,0.17,142.2,142.18,11.67]
[1720666943897,0.17,142.2,142.17,11.67]
[1720666944871,0.17,142.2,142.13,7.0356]
[1720666944872,0.17,142.2,142.18,11.67]
[1720666946068,0.34,142.21,142.15,15.1663]
[1720666946275,17.8125,142.25,142.16,7.034]
[1720666946569,6.1425,142.25,142.21,11.67]
[1720666946780,6.1425,142.25,142.22,11.67]
[1720666947079,16.4916,142.26,142.18,7.0332]
[1720666947080,16.4916,142.26,142.23,11.67]
[1720666947275,6.4663,142.28,142.24,11.67]
[1720666947976,6.4663,142.28,142.26,11.67]
[1720666948192,16.4916,142.3,142.26,11.67]
[1720666950199,0.51,142.29,142.26,11.67]
[1720666950817,0.51,142.29,142.18,7.0333]
[1720666950818,12.18,142.29,142.18,7.0333]
[1720666951103,0.17,142.26,142.22,11.67]
[1720666951291,0.51,142.26,142.22,11.67]
[1720666951487,0.51,142.26,142.23,11.67]
[1720666951802,0.51,142.26,142.24,11.67]
[1720666953202,0.51,142.26,142.23,11.67]
[1720666954078,0.17,142.26,142.23,11.67]
[1720666954409,0.17,142.28,142.24,11.67]
[1720666954711,0.51,142.28,142.24,11.67]
[1720666954883,0.51,142.28,142.25,11.67]
[1720666955694,0.17,142.29,142.26,11.67]
[1720666955890,2.78325269,142.31,142.27,11.67]
[1720666956208,17.43521874,142.34,142.28,11.67]
[1720666956209,29.10521874,142.34,142.28,11.67]
[1720666956581,11.67,142.33,142.28,11.67]
[1720666956777,29.10521874,142.34,142.24,11.67]
[1720666956980,17.43521874,142.34,142.29,11.67]
[1720666957201,17.43521874,142.34,142.3,11.67]
[1720666957405,15.87,142.34,142.3,11.67]
[1720666957788,11.67,142.33,142.28,11.67]
[1720666957996,11.67,142.33,142.27,11.67]
[1720666958294,11.67,142.33,142.28,11.67]
[1720666958491,0.17,142.31,142.28,11.67]
[1720666958784,0.17,142.31,142.21,22.4215]
[1720666958785,11.67,142.3,142.21,22.4215]
[1720666958979,12.18,142.29,142.24,11.67]
[1720666959614,0.51,142.29,142.25,11.67]
[1720666959994,11.67,142.28,142.23,11.67]
[1720666960188,0.51,142.27,142.23,11.67]
[1720666960393,0.51,142.27,142.19,7.0328]
[1720666960594,0.51,142.27,142.23,11.67]
[1720666962185,20.51,142.27,142.18,15.782]
[1720666962385,0.17,142.24,142.2,11.67]
[1720666962619,0.51,142.24,142.2,11.67]
[1720666963926,0.51,142.24,142.18,11.67]
[1720666963927,11.67,142.23,142.18,11.67]
[1720666964122,0.51,142.22,142.18,11.67]
[1720666965400,0.51,142.22,142.13,16.0425]
[1720666965599,0.51,142.22,142.18,11.67]
[1720666966118,0.51,142.22,142.17,11.67]
[1720666966119,12.18,142.22,142.17,11.67]
[1720666967325,0.17,142.2,142.16,11.67]
[1720666967542,0.51,142.2,142.16,11.67]
[1720666969426,12.18,142.2,142.13,16.0425]
[1720666969613,12.18,142.2,142.15,11.67]
[1720666969812,0.51,142.2,142.16,11.67]
[1720666970220,0.51,142.2,142.17,11.67]
[1720666972023,0.17,142.2,142.17,11.67]
[1720666972221,0.34,142.21,142.18,11.67]
[1720666973106,0.17,142.22,142.19,11.67]
[1720666973309,6.0661,142.25,142.19,11.67]
[1720666973529,6.0661,142.25,142.17,11.67]
[1720666973822,6.0661,142.25,142.21,11.67]
[1720666974032,17.7361,142.25,142.17,11.67]
[1720666974229,17.7361,142.25,142.2,11.67]
[1720666974399,11.67,142.24,142.19,11.67]
[1720666974599,11.67,142.23,142.18,11.67]
[1720666975009,0.51,142.22,142.16,7.0341]
[1720666975327,0.17,142.22,142.2,11.67]
[1720666975530,0.17,142.22,142.13,16.0425]
[1720666975531,0.17,142.22,142.14,7.0351]
[1720666975706,0.17,142.22,142.18,11.67]
[1720666976530,16.1545,142.22,142.13,16.0425]
[1720666976708,0.17,142.19,142.15,11.67]
[1720666976902,0.51,142.19,142.15,11.67]
[1720666977317,0.51,142.19,142.16,11.67]
[1720666979613,0.51,142.19,142.15,11.67]
[1720666980213,60.9845,142.22,142.13,16.0425]
[1720666980214,0.17,142.21,142.13,16.0425]
[1720666980536,0.51,142.21,142.18,11.67]
[1720666980909,0.51,142.21,142.17,11.67]
[1720666982340,2.77705413,142.27,142.2,11.67]
[1720666982531,6.0182,142.29,142.25,11.67]
[1720666982711,15.4741,142.3,142.26,11.67]
[1720666982910,6.2781,142.33,142.28,11.67]
[1720666983217,6.2781,142.33,142.29,11.67]
[1720666983638,17.9481,142.33,142.28,11.67]
[1720666984118,6.2781,142.33,142.27,11.67]
[1720666984437,11.67,142.31,142.22,6.3851]
[1720666984619,7.84331874,142.33,142.22,6.3851]
[1720666985016,0.51,142.32,142.22,6.3851]
[1720666986324,68.82,142.32,142.19,21.4685]
[1720666986532,68.82,142.32,142.19,28.5012]
[1720666986831,45.51,142.32,142.2,23.31]
[1720666987134,0.51,142.32,142.2,23.31]
[1720666987352,0.51,142.32,142.21,7.0318]
[1720666987632,0.51,142.32,142.23,7.0308]
[1720666988148,0.51,142.32,142.22,52.0312]
[1720666988645,45.51,142.32,142.2,30.3423]
[1720666988824,45.51,142.32,142.2,7.0323]
[1720666989316,45.51,142.32,142.21,7.0316]
[1720666989626,45.51,142.32,142.19,21.4685]
[1720666989627,45.51,142.32,142.22,7.0312]
[1720666990031,45.51,142.32,142.19,28.5009]
[1720666990234,45.51,142.32,142.2,45.0]
[1720666991043,45.51,142.32,142.2,52.0323]
[1720666991428,45.51,142.32,142.21,7.0318]
[1720666991629,0.34,142.32,142.22,68.31]
[1720666991835,6.2781,142.33,142.24,7.03]
[1720666992647,6.2781,142.33,142.25,45.0]
[1720666992943,6.2781,142.33,142.25,91.4163]
[1720666993325,1.56521874,142.37,142.26,13.2073]
[1720666993844,1.56521874,142.37,142.26,6.1781]
[1720666994645,0.17,142.36,142.26,6.1781]
[1720666994827,0.51,142.36,142.26,6.1781]
[1720666995248,0.51,142.36,142.25,84.3866]
[1720666995456,0.51,142.36,142.25,39.3866]
[1720666996663,0.51,142.36,142.25,16.0766]
[1720666996963,20.51,142.36,142.25,16.0766]
[1720666997267,0.17,142.34,142.25,16.0766]
[1720666997577,0.51,142.34,142.25,16.0766]
[1720666998462,0.17,142.32,142.22,29.4574]
[1720666998667,45.51,142.32,142.22,29.4574]
[1720666998988,45.51,142.32,142.22,23.31]
[1720666999143,45.51,142.32,142.21,16.0243]
[1720666999562,45.51,142.32,142.22,23.31]
[1720667001159,45.51,142.32,142.21,16.0243]
[1720667002354,45.51,142.32,142.21,23.0561]
[1720667002949,45.51,142.32,142.22,7.0312]
[1720667003279,0.51,142.32,142.21,23.0559]
[1720667003468,45.51,142.32,142.21,23.0559]
[1720667003964,45.51,142.32,142.21,16.0243]
[1720667004362,6.4391,142.3,142.19,30.3427]
[1720667004557,6.4391,142.3,142.18,6.1552]
[1720667004558,45.51,142.29,142.18,13.1884]
[1720667005569,45.51,142.29,142.19,7.0327]
[1720667005870,0.51,142.29,142.2,52.0322]
[1720667006367,0.51,142.29,142.2,45.0]
[1720667008367,0.51,142.29,142.21,7.0318]
[1720667008670,0.51,142.29,142.2,52.0321]
[1720667009870,0.51,142.29,142.2,45.0]
[1720667011193,45.51,142.29,142.17,30.3437]
[1720667012570,45.51,142.29,142.18,45.0]
[1720667013168,0.17,142.27,142.15,7.0343]
[1720667013375,0.17,142.25,142.14,23.31]
[1720667013574,6.4406,142.24,142.14,23.31]
[1720667013766,0.51,142.23,142.14,30.3452]
[1720667014187,0.51,142.23,142.15,7.0346]
[1720667014975,0.51,142.23,142.14,23.31]
[1720667014976,0.51,142.23,142.16,7.0342]
[1720667015277,6.4406,142.24,142.17,7.0336]
[1720667015862,6.4406,142.24,142.17,30.3436]
[1720667016485,6.4406,142.24,142.18,45.0]
[1720667019998,6.4406,142.24,142.17,23.31]
[1720667020480,0.17,142.23,142.17,23.31]
[1720667020679,0.51,142.23,142.17,23.31]
[1720667022463,0.51,142.23,142.14,23.31]
[1720667023177,0.51,142.23,142.15,45.0]
[1720667024893,0.17,142.21,142.15,45.0]
[1720667025067,0.17,142.21,142.11,23.31]
[1720667025068,6.1209,142.2,142.11,23.31]
[1720667025388,0.17,142.18,142.1,30.3471]
[1720667025770,0.17,142.18,142.11,7.0367]
[1720667026280,0.34,142.19,142.12,7.0362]
[1720667026590,6.1209,142.2,142.14,7.0352]
[1720667026807,6.1209,142.2,142.13,75.3456]
[1720667027799,0.17,142.19,142.13,23.31]
[1720667027984,0.51,142.19,142.13,23.31]
[1720667028301,0.17,142.19,142.13,23.31]
[1720667031074,0.51,142.19,142.13,23.31]
[1720667031275,0.51,142.19,142.1,30.3472]
[1720667032201,0.51,142.19,142.11,7.0367]
[1720667032493,0.17,142.19,142.12,7.0359]
[1720667032696,0.51,142.19,142.11,7.0366]
[1720667036488,0.51,142.19,142.1,30.3471]
[1720667036793,0.51,142.19,142.11,45.0]
[1720667037105,0.51,142.19,142.1,30.3471]
[1720667037315,0.51,142.19,142.1,23.31]
[1720667037316,0.17,142.17,142.1,23.31]
[1720667037479,0.51,142.17,142.1,23.31]
[1720667037917,0.51,142.17,142.1,30.3472]
[1720667038617,0.51,142.17,142.1,23.31]
[1720667038991,0.51,142.17,142.1,30.3472]
[1720667040894,16.5994,142.18,142.1,59.7201]
[1720667041195,16.5994,142.18,142.13,30.3453]
[1720667041489,16.5994,142.18,142.13,23.31]
[1720667041693,16.5994,142.18,142.1,23.31]
[1720667042084,16.5994,142.18,142.11,45.0]
[1720667042586,16.5994,142.18,142.11,52.0366]
[1720667044312,16.5994,142.18,142.12,7.0361]
[1720667044522,16.5994,142.18,142.13,23.31]
[1720667044814,15.7677,142.22,142.16,23.31]
[1720667045126,6.021,142.24,142.16,23.31]
[1720667045127,6.021,142.24,142.17,52.0334]
[1720667045796,6.021,142.24,142.17,45.0]
[1720667046690,0.17,142.23,142.17,45.0]
[1720667047414,0.17,142.23,142.16,23.31]
[1720667047618,0.51,142.23,142.16,23.31]
[1720667048126,0.51,142.23,142.16,30.3442]
[1720667048306,0.17,142.23,142.16,23.31]
[1720667048691,0.17,142.23,142.16,30.3442]
[1720667050117,0.17,142.23,142.17,7.0337]
[1720667051315,0.17,142.23,142.16,30.3442]
[1720667051613,0.34,142.23,142.16,30.3442]
[1720667053404,0.34,142.23,142.16,23.31]
[1720667053717,0.17,142.22,142.15,7.0347]
[1720667053923,0.34,142.23,142.16,7.0342]
[1720667054123,0.34,142.23,142.13,23.31]
[1720667054311,0.34,142.23,142.14,20.0]
[1720667054512,0.17,142.22,142.14,20.0]
[1720667054717,0.34,142.23,142.2,11.66]
[1720667055813,6.021,142.24,142.22,11.66]
[1720667056117,6.021,142.24,142.23,11.66]
[1720667056303,15.9036,142.25,142.23,11.66]
[1720667056901,15.9036,142.25,142.22,11.66]
[1720667057201,15.9036,142.25,142.21,11.66]
[1720667057504,0.51,142.24,142.21,11.66]
[1720667058521,0.51,142.24,142.17,7.0337]
[1720667058905,0.51,142.24,142.16,23.32]
[1720667060817,0.17,142.22,142.16,23.32]
[1720667061126,0.34,142.22,142.16,23.32]
[1720667062016,0.34,142.22,142.12,15.5711]
[1720667062017,0.17,142.21,142.13,30.3556]
[1720667062324,0.34,142.21,142.13,30.3556]
[1720667062530,0.17,142.2,142.13,23.32]
[1720667062716,0.34,142.2,142.13,23.32]
[1720667063026,0.34,142.2,142.13,30.3557]
[1720667063638,0.34,142.2,142.14,7.0352]
[1720667064532,6.1701,142.23,142.13,23.32]
[1720667064724,0.51,142.22,142.14,45.0]
[1720667065335,0.51,142.22,142.14,52.0352]
[1720667065534,0.51,142.22,142.14,7.0352]
[1720667065923,0.34,142.22,142.15,52.0347]
[1720667066312,0.17,142.22,142.15,52.0347]
[1720667067928,0.17,142.22,142.16,7.0343]
[1720667068644,6.1701,142.23,142.17,45.0]
[1720667068820,6.1701,142.23,142.16,23.32]
[1720667069822,6.1701,142.23,142.16,30.3542]
[1720667070044,0.17,142.22,142.16,23.32]
[1720667076337,0.17,142.2,142.09,15.1492]
[1720667076542,0.17,142.2,142.11,23.32]
[1720667076543,0.51,142.2,142.11,23.32]
[1720667077634,0.51,142.2,142.11,30.3566]
[1720667077953,0.51,142.2,142.11,23.32]
[1720667078159,16.6287,142.17,142.08,7.884613]
[1720667078447,0.51,142.16,142.09,23.32]
[1720667078653,0.51,142.16,142.13,11.68]
[1720667080028,0.51,142.16,142.12,11.68]
[1720667082343,0.51,142.16,142.08,0.846813]
[1720667082344,12.19,142.16,142.08,0.846813]
[1720667082541,12.19,142.16,142.11,11.68]
[1720667083549,0.51,142.16,142.11,11.68]
[1720667083851,12.19,142.16,142.11,11.68]
[1720667087228,12.19,142.16,142.08,0.846813]
[1720667087229,12.19,142.16,142.1,11.68]
[1720667087445,11.85,142.14,142.09,11.68]
[1720667087648,0.34,142.13,142.09,11.68]
[1720667087948,0.17,142.12,142.09,11.68]
[1720667088147,0.17,142.12,142.08,12.526813]
[1720667088849,15.4655,142.12,142.08,0.846813]
[1720667089077,0.17,142.1,142.08,0.846813]
[1720667094345,18.197,142.09,142.08,0.846813]
[1720667094660,0.17,142.08,141.99,258.0]
[1720667094868,0.17,142.06,141.98,15.0903]
[1720667095062,12.19,142.06,142.01,11.68]
[1720667095249,12.19,142.06,141.98,15.0903]
[1720667095565,0.51,142.06,142.02,11.68]
[1720667095955,0.51,142.06,141.98,15.0903]
[1720667096257,0.51,142.06,142.01,11.68]
[1720667096465,0.51,142.06,142.02,11.68]
[1720667096838,12.19,142.06,141.98,15.0903]
[1720667097058,0.17,142.04,141.94,392.591613]
[1720667097258,12.19,142.04,141.99,11.68]
[1720667097660,12.19,142.04,141.98,11.68]
[1720667097962,12.19,142.04,141.94,392.591913]
[1720667098142,0.17,142.02,141.98,11.68]
[1720667098342,0.01,142.02,141.95,0.71533742]
[1720667098660,11.68,142.03,141.98,11.68]
[1720667099655,15.9477,142.02,141.96,0.71528702]
[1720667099965,15.9477,142.02,141.98,11.68]
[1720667100275,15.9477,142.02,141.99,11.68]
[1720667100435,0.34,142.04,142.0,11.68]
[1720667100640,18.027,142.05,142.0,11.68]
[1720667101254,0.17,142.04,142.0,11.68]
[1720667101651,18.027,142.05,142.0,11.68]
[1720667101852,18.027,142.05,141.96,18.7241]
[1720667101853,0.17,142.04,141.96,7.0441]
[1720667102046,18.027,142.05,142.0,11.68]
[1720667103170,6.347,142.05,142.0,11.68]
[1720667103349,0.17,142.04,142.0,11.68]
[1720667103665,0.34,142.04,142.0,11.68]
[1720667105063,0.17,142.03,141.94,0.846813]
[1720667105361,0.17,142.02,141.97,11.68]
[1720667105955,0.17,142.02,141.98,11.68]
[1720667106261,0.17,142.02,141.99,11.68]
[1720667106464,0.17,142.02,141.98,11.68]
[1720667107956,11.85,142.02,141.94,0.846813]
[1720667108152,0.17,142.0,141.96,11.68]
[1720667108381,0.17,142.0,141.94,0.846813]
[1720667108580,0.17,142.0,141.97,11.68]
[1720667108892,0.17,142.0,141.98,11.68]
[1720667109975,0.17,142.01,141.94,0.846813]
[1720667109976,12.02,142.01,141.94,0.846813]
[1720667110154,0.17,142.0,141.95,11.68]
[1720667110353,0.17,141.99,141.95,11.68]
[1720667110572,6.4697,141.99,141.94,0.846813]
[1720667110875,0.17,141.97,141.94,0.846813]
[1720667111056,0.34,141.97,141.94,0.846813]
[1720667111962,12.02,141.97,141.94,0.846813]
[1720667112350,12.02,141.97,141.9,0.04175776]
[1720667112351,11.85,141.95,141.9,0.04175776]
[1720667112562,0.17,141.93,141.9,0.04175776]
[1720667113575,6.2997,141.93,141.9,0.04175776]
[1720667113782,0.17,141.91,141.9,0.04175776]
[1720667114863,15.3757,141.91,141.9,0.04175776]
[1720667115171,15.7157,141.91,141.9,0.04175776]
[1720667115377,27.3957,141.91,141.9,0.04175776]
[1720667115757,27.3957,141.91,141.8,7.362313]
[1720667115962,27.3957,141.91,141.8,0.846813]
[1720667115963,0.17,141.89,141.8,0.846813]
[1720667116177,0.17,141.86,141.8,0.846813]
[1720667116375,0.51,141.86,141.82,11.68]
[1720667116685,0.51,141.86,141.8,0.846813]
[1720667117461,7.0896,141.86,141.8,0.846813]
[1720667119163,6.5796,141.9,141.8,0.846813]
[1720667119378,6.5796,141.9,141.8,45.846813]
[1720667119684,6.5796,141.9,141.8,52.898813]
[1720667119881,6.5796,141.9,141.81,7.0516]
[1720667120084,6.5796,141.9,141.82,52.0511]
[1720667120284,6.5796,141.9,141.82,75.5011]
[1720667120487,6.5796,141.9,141.82,85.0596]
[1720667121183,6.5796,141.9,141.8,0.846813]
[1720667121371,0.17,141.89,141.8,0.846813]
[1720667121569,0.51,141.89,141.8,0.846813]
[1720667122572,65.51,141.89,141.8,0.846813]
[1720667127788,45.51,141.89,141.8,0.846813]
[1720667127981,0.51,141.89,141.8,0.846813]
[1720667128187,0.51,141.89,141.8,7.898913]
[1720667128903,0.51,141.89,141.8,0.846813]
[1720667129292,6.5796,141.9,141.8,17.312113]
[1720667129487,6.5796,141.9,141.81,52.0515]
[1720667129693,6.5796,141.9,141.81,45.0]
[1720667131109,0.17,141.89,141.8,0.846813]
[1720667131409,0.51,141.89,141.8,0.846813]
[1720667131588,45.51,141.89,141.8,0.846813]
[1720667132512,0.51,141.89,141.8,0.846813]
[1720667132713,20.51,141.89,141.8,0.846813]
[1720667136405,0.17,141.85,141.8,0.846813]
[1720667136716,0.51,141.85,141.8,0.846813]
[1720667137087,45.51,141.85,141.8,0.846813]
[1720667138413,45.51,141.85,141.71,7.0562]
[1720667138414,0.17,141.83,141.71,7.0562]
[1720667138584,45.51,141.83,141.71,7.0562]
[1720667139813,6.449,141.81,141.71,7.0562]
[1720667140110,0.17,141.79,141.71,7.0562]
[1720667140414,0.17,141.79,141.7,39.1351]
[1720667141007,0.17,141.79,141.71,17.641]
[1720667141694,0.17,141.79,141.72,52.0557]
[1720667142412,0.17,141.79,141.72,45.0]
[1720667143015,0.17,141.79,141.71,17.641]
[1720667143390,0.17,141.79,141.7,23.45]
[1720667144004,0.17,141.79,141.7,30.5069]
[1720667144215,0.17,141.79,141.7,23.45]
[1720667144514,0.17,141.79,141.7,48.149]
[1720667145015,0.17,141.79,141.71,45.0]
[1720667145908,0.17,141.79,141.7,41.0921]
[1720667146119,0.17,141.79,141.7,23.45]
[1720667147611,0.17,141.79,141.7,30.5071]
[1720667148318,0.17,141.79,141.7,23.45]
[1720667148515,0.17,141.79,141.7,30.5071]
[1720667148817,6.279,141.81,141.71,62.641]
[1720667149626,6.279,141.81,141.7,23.45]
[1720667149803,6.279,141.81,141.7,30.507]
[1720667150004,0.51,141.8,141.7,30.507]
[1720667150404,0.51,141.8,141.7,23.45]
[1720667150624,0.17,141.78,141.68,24.7023]
[1720667150806,0.51,141.78,141.68,17.6444]
[1720667151616,0.51,141.78,141.68,24.7024]
[1720667152508,6.0931,141.77,141.68,17.6444]
[1720667152707,0.34,141.76,141.68,17.6444]
[1720667153227,0.17,141.74,141.67,23.45]
[1720667154647,0.17,141.72,141.65,18.495013]
[1720667154806,6.0931,141.73,141.65,18.495013]
[1720667155131,6.0931,141.73,141.66,7.0587]
[1720667155303,6.0931,141.73,141.66,30.5087]
[1720667156606,6.0931,141.73,141.66,23.45]
[1720667156829,6.0931,141.73,141.66,22.45]
[1720667157135,0.17,141.72,141.66,22.45]
[1720667158007,6.0931,141.73,141.66,22.45]
[1720667158515,0.17,141.72,141.65,0.846813]
[1720667158721,6.0931,141.73,141.65,0.846813]
[1720667158915,6.0931,141.73,141.65,45.846813]
[1720667159624,6.0931,141.73,141.66,7.0591]
[1720667159808,6.0931,141.73,141.65,52.906213]
[1720667160406,6.0931,141.73,141.65,45.846813]
[1720667160611,15.5148,141.75,141.67,41.0965]
[1720667160806,15.5148,141.75,141.7,7.057]
[1720667161006,6.6016,141.77,141.68,16.1812]
[1720667161226,6.6016,141.77,141.69,62.6432]
[1720667161420,6.6016,141.77,141.68,16.1812]
[1720667161630,6.6016,141.77,141.67,23.45]
[1720667162221,15.2265,141.75,141.65,0.846813]
[1720667162628,0.17,141.72,141.65,0.846813]
[1720667164417,0.17,141.7,141.65,0.846813]
[1720667165023,0.34,141.7,141.65,0.846813]
[1720667165529,0.17,141.69,141.65,0.846813]
[1720667165731,0.17,141.68,141.65,0.846813]
[1720667165913,0.17,141.66,141.65,0.846813]
[1720667166313,17.0929,141.66,141.65,0.846813]
[1720667167220,0.17,141.64,141.54,33.0452]
[1720667167426,0.17,141.64,141.55,30.5145]
[1720667167734,0.17,141.64,141.56,7.0641]
[1720667167938,0.51,141.64,141.55,30.5145]
[1720667168531,0.51,141.64,141.55,23.45]
[1720667168717,0.51,141.64,141.55,30.5145]
[1720667169125,0.51,141.64,141.55,23.45]
[1720667169726,0.51,141.64,141.55,30.5145]
[1720667170047,0.34,141.64,141.56,7.0639]
[1720667170219,0.34,141.64,141.55,30.5145]
[1720667171038,0.34,141.64,141.55,23.45]
[1720667171533,0.17,141.63,141.54,17.6622]
[1720667171739,0.17,141.62,141.54,17.6622]
[1720667172619,0.17,141.6,141.53,23.45]
[1720667172826,15.3298,141.59,141.51,25.579113]
[1720667173030,15.3298,141.59,141.51,49.029113]
[1720667173425,15.3298,141.59,141.51,0.846813]
[1720667173831,6.3086,141.58,141.51,0.846813]
[1720667174139,0.17,141.57,141.51,0.846813]
[1720667175342,6.4786,141.58,141.51,7.913313]
[1720667175343,6.3086,141.58,141.51,7.913313]
[1720667175515,6.3086,141.58,141.51,0.846813]
[1720667176141,0.17,141.57,141.51,0.846813]
[1720667176548,0.17,141.56,141.51,0.846813]
[1720667176727,0.34,141.56,141.51,0.846813]
[1720667177433,0.17,141.55,141.51,0.846813]
[1720667177630,0.34,141.55,141.51,0.846813]
[1720667177832,0.17,141.54,141.51,0.846813]
[1720667178442,6.1386,141.58,141.51,0.846813]
[1720667178741,4.43759334,141.62,141.51,0.846813]
[1720667178742,6.6551,141.62,141.57,7.0633]
[1720667178926,6.6551,141.62,141.56,23.45]
[1720667179131,6.6551,141.62,141.53,23.45]
[1720667179744,6.6551,141.62,141.51,0.846813]
[1720667179952,0.17,141.61,141.51,0.846813]
[1720667180139,0.51,141.61,141.51,0.846813]
[1720667180455,145.51,141.61,141.51,0.846813]
[1720667180750,15.7919,141.59,141.51,0.846813]
[1720667181047,0.17,141.57,141.51,0.846813]
[1720667181641,0.17,141.55,141.51,0.846813]
[1720667181825,0.34,141.55,141.51,0.846813]